bitfinex-derivatives/quotes_SOLF0:USTF0_20250404
["timestamp","ask_amount","ask_price","bid_price","bid_amount"]
[1743766780017,3.32145302,114.44,114.42,39.12]
[1743766780417,3.38325683,114.44,114.42,39.18532388]
[1743766780921,3.38325683,114.44,114.42,47.92522388]
[1743766781520,12.12225683,114.44,114.42,47.92522388]
[1743766781921,12.12225683,114.44,114.43,62.0]
[1743766783723,8.80080381,114.44,114.43,62.0]
[1743766784118,0.06180381,114.44,114.43,62.0]
[1743766785625,0.06180381,114.44,114.42,0.06532388]
[1743766786022,38.82180381,114.44,114.39,38.7]
[1743766786225,38.82180381,114.44,114.37,4.7863]
[1743766786421,8.7408,114.42,114.37,4.7863]
[1743766786618,38.76,114.44,114.37,4.7863]
[1743766787022,8.7416,114.41,114.37,4.7863]
[1743766787224,0.06703262,114.4,114.38,0.05940141]
[1743766787522,8.80903262,114.4,114.38,0.05940141]
[1743766788027,0.06703262,114.4,114.38,0.05940141]
[1743766788224,8.7427,114.39,114.38,0.05940141]
[1743766788624,8.7427,114.39,114.38,62.05940141]
[1743766789225,8.7427,114.39,114.38,0.05940141]
[1743766789423,8.7447,114.37,114.33,38.72]
[1743766789623,8.7447,114.37,114.33,47.4667]
[1743766789824,8.7439,114.38,114.33,38.72]
[1743766790024,75.09863366,114.41,114.33,38.72]
[1743766790626,0.06647565,114.38,114.36,0.06228394]
[1743766791030,0.06647565,114.38,114.36,38.86228394]
[1743766791530,0.06647565,114.38,114.36,47.60688394]
[1743766791722,0.06647565,114.38,114.36,38.86228394]
[1743766792124,0.06647565,114.38,114.37,70.7442]
[1743766792832,0.06647565,114.38,114.37,62.0]
[1743766793222,0.06647565,114.38,114.37,70.7442]
[1743766793824,0.06647565,114.38,114.37,62.0]
[1743766794736,0.06647565,114.38,114.37,70.7442]
[1743766794935,0.06647565,114.38,114.37,62.0]
[1743766795136,9.1465,114.46,114.37,62.0]
[1743766795336,8.7392,114.44,114.41,8.7411]
[1743766795536,45.17403366,114.46,114.37,100.58]
[1743766795737,31.68903366,114.44,114.37,100.58]
[1743766795936,8.74,114.43,114.39,8.7421]
[1743766796138,31.68903366,114.44,114.37,100.58]
[1743766796331,0.05532341,114.42,114.4,8.80529139]
[1743766796532,0.05532341,114.42,114.4,0.06389139]
[1743766796728,0.05532341,114.42,114.4,38.68389139]
[1743766796929,0.05532341,114.42,114.41,8.7411]
[1743766799639,0.05532341,114.42,114.4,38.68389139]
[1743766800337,0.05532341,114.42,114.4,38.56389139]
[1743766800740,0.05532341,114.42,114.4,47.30519139]
[1743766800935,0.05532341,114.42,114.4,38.56389139]
[1743766801344,8.7411,114.41,114.4,0.06389139]
[1743766801941,8.79602341,114.42,114.4,0.06389139]
[1743766802138,0.05532341,114.42,114.4,0.06389139]
[1743766802536,47.17532341,114.42,114.36,38.44]
[1743766802734,31.68903366,114.41,114.33,38.42]
[1743766802931,8.7446,114.37,114.32,4.7594]
[1743766803341,8.8907,114.4,114.32,43.1794]
[1743766803647,0.06322273,114.37,114.35,0.0590208]
[1743766804246,0.06322273,114.37,114.35,8.8047208]
[1743766804443,0.06322273,114.37,114.35,0.0590208]
[1743766804846,38.46,114.36,114.28,13.6432]
[1743766805350,31.68903366,114.33,114.28,62.0]
[1743766805552,47.4249,114.32,114.28,62.0]
[1743766805750,47.4249,114.32,114.24,38.44]
[1743766805947,47.4249,114.32,114.23,299.61143284]
[1743766805948,8.7496,114.3,114.29,0.06153733]
[1743766806153,31.74436053,114.31,114.23,299.61143284]
[1743766806356,31.68903366,114.31,114.23,308.36633284]
[1743766806755,8.7516,114.28,114.23,308.36633284]
[1743766807056,38.48,114.29,114.24,8.7538]
[1743766807354,0.06544548,114.27,114.24,0.06467837]
[1743766808054,8.753,114.26,114.24,0.06467837]
[1743766808750,8.7534,114.25,114.24,0.06467837]
[1743766809151,8.753,114.26,114.24,0.06467837]
[1743766810258,8.7534,114.25,114.24,0.06467837]
[1743766810855,31.68903366,114.25,114.15,387.68903366]
[1743766811053,31.68903366,114.25,114.16,1.60847818]
[1743766811251,8.7565,114.21,114.16,8.7601]
[1743766811456,70.08903366,114.23,114.15,13.7178]
[1743766811658,31.68903366,114.21,114.16,62.0]
[1743766811859,31.68903366,114.19,114.12,8.7633]
[1743766812159,31.68903366,114.19,114.13,1.75238762]
[1743766812759,8.7601,114.17,114.13,1.75238762]
[1743766813159,47.1396,114.17,114.13,1.75238762]
[1743766813361,0.06695157,114.16,114.14,0.06595251]
[1743766814262,0.06695157,114.16,114.15,38.36]
[1743766814764,0.06695157,114.16,114.15,109.1211]
[1743766815155,0.06695157,114.16,114.15,62.0]
[1743766815360,0.06695157,114.16,114.15,100.4]
[1743766815765,0.06695157,114.16,114.15,109.1611]
[1743766816261,0.06695157,114.16,114.15,110.77031212]
[1743766816464,0.06695157,114.16,114.15,109.1611]
[1743766816766,0.06695157,114.16,114.15,100.4]
[1743766817154,0.06695157,114.16,114.15,110.77032918]
[1743766817464,4.5576,114.22,114.15,102.00922918]
[1743766817662,4.5576,114.22,114.16,1.60922918]
[1743766818164,8.7573,114.2,114.15,47.1607]
[1743766818366,0.06563542,114.19,114.16,1.6643554]
[1743766819062,0.06563542,114.19,114.17,40.52723366]
[1743766819265,8.7995,114.25,114.18,40.00921002]
[1743766819562,8.7995,114.25,114.18,38.4]
[1743766820365,0.06671928,114.23,114.2,0.06187795]
[1743766820566,0.06671928,114.23,114.22,8.7551]
[1743766820773,0.06671928,114.23,114.22,70.7551]
[1743766821163,70.08903366,114.29,114.22,62.0]
[1743766821665,8.7546,114.24,114.22,62.0]
[1743766821868,70.08903366,114.29,114.22,62.0]
[1743766822175,8.7547,114.24,114.22,62.0]
[1743766822369,31.74428253,114.27,114.24,1.532e-05]
[1743766822661,8.7534,114.25,114.24,1.532e-05]
[1743766823257,49.20243366,114.25,114.24,1.532e-05]
[1743766823457,40.44903366,114.25,114.18,1.60891085]
[1743766823664,9.026,114.24,114.18,1.60891085]
[1743766824565,8.81290474,114.22,114.2,0.05762049]
[1743766824768,0.05670474,114.22,114.2,0.05762049]
[1743766825070,8.7565,114.21,114.2,0.05762049]
[1743766825873,8.81280474,114.22,114.2,0.05762049]
[1743766826066,0.05670474,114.22,114.2,0.05762049]
[1743766826467,8.7565,114.21,114.2,0.05762049]
[1743766829877,0.05670474,114.22,114.2,0.05762049]
[1743766830074,13.1707,114.28,114.2,1.66643463]
[1743766830268,13.1707,114.28,114.2,10.84483463]
[1743766830472,8.7534,114.25,114.21,1.60881414]
[1743766830676,13.1707,114.28,114.22,38.4]
[1743766830979,13.1707,114.28,114.23,1.60881414]
[1743766831179,70.08903366,114.31,114.22,38.4]
[1743766831379,0.06006222,114.26,114.24,1.66489038]
[1743766831773,70.08903366,114.31,114.25,1.60806667]
[1743766831974,0.06516194,114.26,114.25,1.60806667]
[1743766832270,0.06468027,114.27,114.25,8.753]
[1743766832669,0.06468027,114.27,114.24,10.36204422]
[1743766832980,0.06468027,114.27,114.25,1.66367882]
[1743766833373,0.06468027,114.27,114.25,0.05559825]
[1743766833681,8.81708027,114.27,114.25,0.05559825]
[1743766834278,0.06468027,114.27,114.26,62.0]
[1743766834674,13.3735,114.32,114.26,63.60793529]
[1743766834873,13.3735,114.32,114.27,1.60793529]
[1743766835071,8.7516,114.28,114.25,38.4]
[1743766835378,13.3735,114.32,114.26,1.60783961]
[1743766835577,8.7499,114.3,114.26,10.35993961]
[1743766835777,0.05666729,114.3,114.28,0.05822931]
[1743766836175,8.7503,114.29,114.28,0.05822931]
[1743766837276,70.08903366,114.29,114.26,1.60771067]
[1743766837478,74.75833366,114.29,114.25,1.60805758]
[1743766837780,8.7534,114.25,114.24,1.60824422]
[1743766838784,8.7542,114.24,114.23,0.05541929]
[1743766841187,8.7537,114.25,114.23,62.05541929]
[1743766841586,38.46246464,114.26,114.23,62.05541929]
[1743766841786,38.46246464,114.26,114.23,0.05541929]
[1743766842086,38.46246464,114.26,114.23,1.929e-05]
[1743766842390,70.1514983,114.26,114.23,1.929e-05]
[1743766842592,38.46246464,114.26,114.23,1.929e-05]
[1743766842982,0.06246464,114.26,114.23,1.929e-05]
[1743766843589,8.7539,114.25,114.23,1.929e-05]
[1743766843889,0.06246464,114.26,114.23,1.929e-05]
[1743766845887,31.7514983,114.26,114.23,1.929e-05]
[1743766846093,31.68903366,114.24,114.23,1.929e-05]
[1743766846389,31.68903366,114.24,114.17,9.2417]
[1743766846890,31.68903366,114.24,114.18,1.609006]
[1743766847494,0.06161101,114.22,114.2,0.06091928]
[1743766848589,8.81761101,114.22,114.2,1.66960199]
[1743766848784,0.06161101,114.22,114.2,1.66960199]
[1743766848992,8.81731101,114.22,114.21,62.0]
[1743766850895,8.7565,114.21,114.2,0.06091928]
[1743766853800,8.7565,114.21,114.2,62.06091928]
[1743766855502,8.7565,114.21,114.2,0.06091928]
[1743766858506,8.7565,114.21,114.2,62.06091928]
[1743766860206,8.7565,114.21,114.2,0.06091928]
[1743766863309,8.7565,114.21,114.2,62.06091928]
[1743766864910,8.7565,114.21,114.2,0.06091928]
[1743766868407,19.86888266,114.21,114.14,42.71358266]
[1743766868609,8.7595,114.17,114.14,47.6809]
[1743766868808,19.86888266,114.19,114.14,38.38]
[1743766869013,8.7611,114.15,114.14,38.38]
[1743766869208,8.7611,114.15,114.12,37.74612488]
[1743766869410,19.86888266,114.17,114.12,37.74612488]
[1743766869610,0.05833355,114.15,114.12,46.56884197]
[1743766869811,0.05833355,114.15,114.12,37.80554197]
[1743766870114,8.81943355,114.15,114.12,37.80554197]
[1743766870510,0.05833355,114.15,114.12,37.80554197]
[1743766870711,8.7619,114.14,114.12,0.05941709]
[1743766870910,0.05833355,114.15,114.12,21.5378591]
[1743766871110,4.6284,114.2,114.13,1.60955935]
[1743766871311,4.6284,114.2,114.14,38.38]
[1743766871512,4.6284,114.2,114.15,62.0]
[1743766871710,13.386,114.2,114.16,8.7596]
[1743766871913,9.3608,114.22,114.17,38.4]
[1743766872305,8.7578,114.2,114.18,0.05751762]
[1743766872509,0.05821015,114.21,114.18,0.05751762]
[1743766873013,0.05821015,114.21,114.19,8.7579]
[1743766873209,0.05821015,114.21,114.2,38.4]
[1743766873406,8.81471015,114.21,114.2,38.4]
[1743766873915,0.05821015,114.21,114.2,38.4]
[1743766875012,0.05821015,114.21,114.2,100.4]
[1743766875616,8.81471015,114.21,114.2,100.4]
[1743766877216,8.81471015,114.21,114.2,38.4]
[1743766877417,8.758,114.19,114.18,0.05751762]
[1743766878120,0.05821015,114.21,114.18,0.05751762]
[1743766878516,0.05821015,114.21,114.18,8.81591762]
[1743766879209,8.81501015,114.21,114.18,8.81591762]
[1743766879415,0.05821015,114.21,114.18,0.05751762]
[1743766879710,8.81511015,114.21,114.18,0.05751762]
[1743766879913,0.05821015,114.21,114.19,8.7576]
[1743766880110,0.05821015,114.21,114.2,62.0]
[1743766880517,38.38,114.29,114.2,63.60847321]
[1743766880712,8.7522,114.27,114.2,62.0]
[1743766880910,13.6873,114.29,114.21,1.60832317]
[1743766881114,13.6873,114.29,114.22,38.38]
[1743766881716,0.05875856,114.27,114.24,0.05951745]
[1743766882220,8.7534,114.25,114.24,0.05951745]
[1743766883410,31.79896187,114.26,114.2,62.0]
[1743766883609,31.79896187,114.24,114.2,62.0]
[1743766883809,8.7565,114.21,114.2,62.0]
[1743766884112,31.79896187,114.24,114.16,38.38]
[1743766884316,31.79896187,114.22,114.16,38.38]
[1743766884516,8.7572,114.2,114.19,0.05960162]
[1743766885820,8.7604,114.16,114.13,43.0212]
[1743766886020,31.79896187,114.2,114.14,1.60922543]
[1743766886218,31.79896187,114.22,114.14,1.60922543]
[1743766886520,31.79896187,114.22,114.15,8.7607]
[1743766886723,8.7587,114.19,114.15,8.7607]
[1743766886922,0.06063769,114.2,114.17,0.05840132]
[1743766887122,0.06063769,114.2,114.17,62.05840132]
[1743766887322,8.7589,114.18,114.17,0.05840132]
[1743766888117,8.7582,114.19,114.17,0.05840132]
[1743766888523,0.06063769,114.2,114.17,0.05840132]
[1743766888824,8.7588,114.18,114.17,0.05840132]
[1743766893226,40.55776187,114.18,114.17,1.32e-06]
[1743766893425,40.55776187,114.18,114.12,4.6053]
[1743766893426,31.79896187,114.18,114.08,242.04765406]
[1743766893626,31.79896187,114.14,114.09,1.60967873]
[1743766893821,70.17896187,114.14,114.1,1.75284837]
[1743766894021,8.7647,114.11,114.1,1.75284837]
[1743766895333,8.7647,114.11,114.09,0.0604672]
[1743766895334,8.7649,114.1,114.09,0.0604672]
[1743766895829,0.0624841,114.12,114.09,0.0604672]
[1743766896231,8.7649,114.1,114.09,62.0604672]
[1743766897031,8.7649,114.1,114.09,0.0604672]
[1743766897231,8.7644,114.11,114.09,0.0604672]
[1743766897432,0.0624841,114.12,114.09,0.0604672]
[1743766898133,0.0624841,114.12,114.09,8.8256672]
[1743766898331,0.0624841,114.12,114.09,0.0604672]
[1743766898531,0.0624841,114.12,114.1,47.1445]
[1743766898932,0.0624841,114.12,114.1,38.38]
[1743766899234,0.0624841,114.12,114.1,47.1446]
[1743766899532,8.8258841,114.12,114.1,38.38]
[1743766899731,0.0624841,114.12,114.1,38.38]
[1743766900032,0.0624841,114.12,114.11,62.0]
[1743766900629,8.8258841,114.12,114.11,62.0]
[1743766901731,8.7649,114.1,114.09,0.0604672]
[1743766905830,8.7648,114.11,114.09,0.0604672]
[1743766906230,0.0624841,114.12,114.09,0.0604672]
[1743766906734,0.0624841,114.12,114.1,38.4]
[1743766906934,8.8262841,114.12,114.1,38.4]
[1743766907231,0.0624841,114.12,114.1,38.4]
[1743766908835,8.8262841,114.12,114.1,38.4]
[1743766909533,8.7641,114.11,114.1,38.4]
[1743766909733,0.0624841,114.12,114.1,38.4]
[1743766910037,0.0624841,114.12,114.1,47.1645]
[1743766910734,8.8258841,114.12,114.1,47.1645]
[1743766910937,0.0624841,114.12,114.1,47.1645]
[1743766911131,0.0624841,114.12,114.11,8.7641]
[1743766911338,0.0624841,114.12,114.1,38.4]
[1743766911636,0.0624841,114.12,114.09,0.0604672]
[1743766911939,8.7645,114.11,114.09,0.0604672]
[1743766912336,0.0624841,114.12,114.09,0.0604672]
[1743766912841,0.0624841,114.12,114.03,31.79896187]
[1743766912842,70.24144597,114.12,114.04,4.5178]
[1743766913029,0.0624841,114.12,114.04,45.58986187]
[1743766913232,315.4,114.13,114.04,45.58986187]
[1743766913428,31.79896187,114.14,114.04,45.58986187]
[1743766913635,70.17896187,114.15,114.04,45.58986187]
[1743766914033,8.7649,114.1,114.08,0.05807566]
[1743766914233,8.7649,114.1,114.08,38.45807566]
[1743766914433,0.06192826,114.11,114.08,38.45807566]
[1743766914634,8.7657,114.09,114.08,38.45807566]
[1743766914838,0.06192826,114.11,114.08,38.45807566]
[1743766915342,324.4587,114.18,114.12,8.763]
[1743766915538,8.7618,114.15,114.12,47.143]
[1743766915834,31.79896187,114.19,114.13,62.0]
[1743766916029,8.76,114.17,114.13,62.0]
[1743766916236,45.54976187,114.21,114.13,62.0]
[1743766916436,0.06589441,114.16,114.14,8.82052487]
[1743766916635,45.54976187,114.21,114.14,8.7615]
[1743766916836,0.05905648,114.16,114.14,8.82830229]
[1743766917035,0.05905648,114.16,114.12,38.38]
[1743766917036,45.54976187,114.21,114.13,8.7622]
[1743766917238,8.81838739,114.16,114.14,0.05904199]
[1743766917436,0.05778739,114.16,114.14,0.05904199]
[1743766917738,8.7611,114.15,114.14,0.05904199]
[1743766918143,0.05778739,114.16,114.14,0.05904199]
[1743766918443,31.79896187,114.23,114.15,38.38]
[1743766918743,8.7584,114.19,114.17,8.7594]
[1743766918944,315.38,114.24,114.18,38.38]
[1743766919145,45.65576187,114.25,114.18,38.38]
[1743766919346,8.7566,114.21,114.18,38.38]
[1743766919538,8.7566,114.21,114.2,0.05832135]
[1743766920342,8.8114621,114.22,114.2,0.05832135]
[1743766920739,0.0553621,114.22,114.2,0.05832135]
[1743766920940,8.8115621,114.22,114.2,0.05832135]
[1743766921139,0.0553621,114.22,114.2,0.05832135]
[1743766921534,8.7565,114.21,114.2,0.05832135]
[1743766922042,8.7603,114.16,114.15,38.38]
[1743766922243,8.7603,114.16,114.15,39.98909203]
[1743766922445,31.79896187,114.19,114.13,38.38]
[1743766923041,31.79896187,114.23,114.14,62.0]
[1743766923241,0.05801228,114.17,114.15,10.42926842]
[1743766923440,70.15896187,114.23,114.16,38.36]
[1743766923635,0.05649806,114.17,114.15,0.06027627]
[1743766923843,8.7603,114.16,114.14,4.6397]
[1743766924045,0.05970783,114.17,114.15,0.06706531]
[1743766924245,8.7603,114.16,114.15,0.06706531]
[1743766926548,8.7603,114.16,114.15,62.06706531]
[1743766928049,8.7603,114.16,114.15,0.06706531]
[1743766928443,8.7629,114.13,114.1,9.0228]
[1743766928650,8.7629,114.13,114.1,42.9532]
[1743766928850,70.15896187,114.17,114.1,42.9532]
[1743766929051,8.7629,114.13,114.1,42.9532]
[1743766929246,70.15896187,114.17,114.11,1.60969959]
[1743766929551,8.7599,114.17,114.11,1.60969959]
[1743766929850,4.3335,114.21,114.14,8.7614]
[1743766930050,4.3335,114.21,114.15,38.36]
[1743766930350,9.0698,114.21,114.15,38.36]
[1743766930947,9.0698,114.21,114.15,47.121]
[1743766931149,9.0698,114.21,114.17,0.06459178]
[1743766931150,0.06373911,114.19,114.17,0.06459178]
[1743766931349,8.7588,114.18,114.17,0.06459178]
[1743766931552,0.06373911,114.19,114.17,0.06459178]
[1743766932149,8.82213911,114.19,114.17,0.06459178]
[1743766932346,0.06373911,114.19,114.18,38.36]
[1743766932852,8.82173911,114.19,114.18,38.36]
[1743766933048,0.06373911,114.19,114.18,38.36]
[1743766933454,8.82173911,114.19,114.18,38.36]
[1743766933853,0.06373911,114.19,114.17,0.06459178]
[1743766934049,8.7588,114.18,114.17,0.06459178]
[1743766939662,0.06373911,114.19,114.17,38.42459178]
[1743766939663,8.82203911,114.19,114.17,38.42459178]
[1743766939958,0.06373911,114.19,114.17,38.42459178]
[1743766940958,8.7588,114.18,114.17,38.42459178]
[1743766941159,0.06373911,114.19,114.17,100.42459178]
[1743766942358,8.7588,114.18,114.17,100.42459178]
[1743766944261,8.7588,114.18,114.17,62.06459178]
[1743766945362,8.7588,114.18,114.17,0.06459178]
[1743766945967,8.7611,114.15,114.14,38.34]
[1743766946856,8.7628,114.13,114.11,8.8749]
[1743766947060,0.05960703,114.13,114.12,39.94944251]
[1743766947459,0.05960703,114.13,114.12,38.34]
[1743766948066,8.82220703,114.13,114.12,38.34]
[1743766948366,8.82220703,114.13,114.12,100.34]
[1743766949066,4.6349,114.19,114.12,101.94961327]
[1743766949266,4.6349,114.19,114.13,1.60949382]
[1743766949969,8.7614,114.15,114.12,47.103]
[1743766950270,0.06565559,114.15,114.12,38.40466772]
[1743766950569,0.06565559,114.15,114.12,0.06466772]
[1743766950768,0.06565559,114.15,114.13,38.34]
[1743766950968,8.7618,114.14,114.13,38.34]
[1743766951169,0.06565559,114.15,114.13,38.34]
[1743766951569,4.7357,114.2,114.13,47.1023]
[1743766951570,8.7606,114.16,114.13,47.1023]
[1743766951869,4.7357,114.2,114.13,38.34]
[1743766952072,8.7601,114.17,114.14,8.7612]
[1743766952367,4.7357,114.2,114.15,62.0]
[1743766952572,4.7357,114.2,114.16,38.34]
[1743766952870,8.7595,114.17,114.16,38.399053]
[1743766955069,8.7592,114.18,114.16,38.399053]
[1743766955467,8.81909975,114.19,114.16,47.159253]
[1743766955873,8.81909975,114.19,114.17,62.0]
[1743766957373,8.7588,114.18,114.17,62.0]
[1743766958277,8.7595,114.17,114.16,0.059053]
[1743766958468,8.7595,114.17,114.16,5.3e-05]
[1743766958874,17.8976,114.17,114.11,39.9497023]
[1743766959074,31.79896187,114.16,114.11,38.34]
[1743766959278,8.7634,114.12,114.11,38.34]
[1743766959676,36.39616187,114.16,114.08,561.71985406]
[1743766959971,0.05955604,114.13,114.11,0.05544331]
[1743766960377,8.7634,114.12,114.11,0.05544331]
[1743766960674,0.05955604,114.13,114.08,242.04765406]
[1743766960878,8.7657,114.09,114.08,242.04765406]
[1743766961778,8.7657,114.09,114.08,234.86275406]
[1743766961978,13.2526,114.09,114.08,234.86275406]
[1743766962178,8.7664,114.08,114.07,164.45289096]
[1743766962476,40.56536187,114.08,114.07,125.75189096]
[1743766962677,8.7703,114.03,114.02,38.34]
[1743766962881,31.79896187,114.08,114.02,1.61097199]
[1743766962882,31.79896187,114.06,114.02,1.61097199]
[1743766963072,31.79896187,114.06,114.01,37.84579058]
[1743766963377,31.79896187,114.04,114.01,37.84579058]
[1743766964077,31.85806628,114.04,114.01,37.9085645]
[1743766964280,8.7703,114.03,114.02,62.0]
[1743766964872,0.05910441,114.04,114.02,62.0]
[1743766966581,47.49803965,114.07,114.03,38.34]
[1743766966776,47.49803965,114.07,114.03,42.6706]
[1743766967076,47.49803965,114.07,114.04,4.6285]
[1743766967476,47.49803965,114.07,114.04,13.3976]
[1743766967679,47.55505139,114.07,114.04,43.05201015]
[1743766967977,8.7681,114.06,114.04,4.69201015]
[1743766969682,0.05701174,114.07,114.05,62.0]
[1743766970084,8.768,114.06,114.05,62.0]
[1743766970473,0.05701174,114.07,114.05,62.0]
[1743766970673,315.3,114.13,114.05,100.36]
[1743766970879,315.3,114.13,114.06,9.1736]
[1743766971079,31.79896187,114.14,114.06,9.1736]
[1743766971285,8.7646,114.11,114.07,8.7667]
[1743766971481,31.79896187,114.14,114.08,38.36]
[1743766971681,494.19149127,114.18,114.08,38.36]
[1743766971881,0.06643696,114.12,114.1,0.06152912]
[1743766972275,8.7644,114.11,114.1,0.06152912]
[1743766973282,8.83013696,114.12,114.1,0.06152912]
[1743766973490,0.06643696,114.12,114.1,0.06152912]
[1743766973987,40.56306187,114.11,114.1,0.06152912]
[1743766974185,40.56306187,114.11,114.1,2.912e-05]
[1743766975489,49.32306187,114.11,114.1,2.912e-05]
[1743766976189,40.56306187,114.11,114.1,2.912e-05]
[1743766976886,31.79896187,114.09,114.03,42.8072]
[1743766977083,31.79896187,114.07,114.04,62.0]
[1743766977289,31.79896187,114.07,114.01,4.6923]
[1743766977290,38.34,114.06,114.01,4.6923]
[1743766977882,0.05958717,114.05,113.98,47.1138]
[1743766978084,31.79896187,114.05,114.02,0.05882094]
[1743766978291,0.06268272,114.03,114.02,0.05882094]
[1743766978490,8.772,114.01,113.97,42.6653]
[1743766978687,31.79896187,114.05,113.98,0.06222713]
[1743766978890,8.83502521,114.0,113.97,42.6653]
[1743766979193,8.83502521,114.0,113.97,4.3253]
[1743766979194,8.7727,114.0,113.97,4.3253]
[1743766979389,0.06226591,114.0,113.97,13.16473062]
[1743766980093,0.06226591,114.0,113.97,4.38993062]
[1743766980291,0.06226591,114.0,113.98,62.0]
[1743766981094,8.7734,113.99,113.98,62.0]
[1743766981296,0.06226591,114.0,113.98,62.0]
[1743766981595,8.7711,114.02,113.98,62.0]
[1743766981896,47.49803965,114.08,113.98,93.79896187]
[1743766982286,47.49803965,114.08,114.0,8.772]
[1743766982494,31.79896187,114.07,114.01,42.9683]
[1743766982794,0.06475946,114.05,114.03,0.06394147]
[1743766983294,8.7695,114.04,114.03,0.06394147]
[1743766984796,0.06475946,114.05,114.01,38.36]
[1743766984995,70.15896187,114.08,114.01,38.36]
[1743766985189,8.7699,114.04,114.01,38.36]
[1743766985389,70.15896187,114.08,114.02,62.0]
[1743766986093,0.0644842,114.06,114.04,1.42e-06]
[1743766986293,8.7687,114.05,114.04,1.42e-06]
[1743766987294,8.7703,114.03,114.02,62.0]
[1743766987792,8.7699,114.04,114.02,62.0]
[1743766988193,31.79896187,114.06,114.02,62.0]
[1743766988393,0.06030445,114.04,114.02,0.06332124]
[1743766988897,8.7703,114.03,114.02,0.06332124]
[1743766990492,8.7703,114.03,114.02,2.124e-05]
[1743766995889,8.7741,113.98,113.97,4.3253]
[1743766996092,70.15896187,114.02,113.97,4.3253]
[1743766996296,8.7738,113.99,113.97,4.3253]
[1743766996497,70.15896187,114.02,113.97,4.3253]
[1743766996904,8.7741,113.98,113.97,4.3253]
[1743766997290,8.7741,113.98,113.97,62.0]
[1743766997694,8.83122544,113.99,113.97,62.0]
[1743766998100,0.05742544,113.99,113.97,62.0]
[1743766998295,8.7741,113.98,113.97,62.0]
[1743766999105,8.83102544,113.99,113.97,62.0]
[1743766999297,0.05742544,113.99,113.97,62.0]
[1743766999798,84.87951512,114.0,113.97,100.36]
[1743766999991,77.69131512,114.0,113.97,100.36]
[1743767000204,63.31491512,114.0,113.98,8.7738]
[1743767000501,235.28717487,114.01,113.97,100.36]
[1743767000705,19.09198999,114.01,114.0,40.57156187]
[1743767000894,58.49867822,114.09,114.0,71.77059009]
[1743767001099,0.0672823,114.02,114.0,78.93896187]
[1743767001299,74.07945991,114.02,114.01,1.61114257]
[1743767001499,74.07945991,114.02,114.01,42.19010444]
[1743767001700,74.07945991,114.02,114.01,1.61114257]
[1743767001900,74.07945991,114.02,114.01,10.38294257]
[1743767002701,74.07945991,114.02,114.0,47.1321]
[1743767002907,74.07945991,114.02,114.01,1.61113158]
[1743767003403,0.06339193,114.03,114.01,243.94914998]
[1743767003602,8.83399193,114.03,114.02,1.61113158]
[1743767003799,0.06339193,114.03,114.02,1.61113158]
[1743767004004,0.06339193,114.03,114.02,63.61113158]
[1743767004205,0.06339193,114.03,114.02,72.38213158]
[1743767004402,0.06339193,114.03,114.02,79.551]
[1743767004598,0.06339193,114.03,114.02,81.1617955]
[1743767005107,0.06339193,114.03,114.02,626.4223369]
[1743767005304,8.7678,114.07,114.04,8.7694]
[1743767005505,8.768,114.06,114.05,38.36]
[1743767005699,4.4095,114.1,114.05,38.36]
[1743767005903,31.79896187,114.12,114.05,38.36]
[1743767006097,9.247,114.13,114.05,70.15896187]
[1743767006304,31.79896187,114.16,114.07,31.79896187]
[1743767006609,0.06599463,114.1,114.08,48.80218906]
[1743767006906,31.79896187,114.16,114.08,48.80218906]
[1743767006907,9.2205,114.17,114.09,1.61055089]
[1743767007102,0.05820271,114.1,114.09,33.40951276]
[1743767007304,8.7614,114.15,114.09,33.40951276]
[1743767007502,4.673,114.17,114.09,31.79896187]
[1743767007709,4.673,114.17,114.1,1.60991208]
[1743767007911,4.673,114.17,114.11,38.34]
[1743767008510,0.05768556,114.15,114.13,0.06551815]
[1743767008911,8.7618,114.14,114.13,0.06551815]
[1743767012002,8.7618,114.14,114.13,62.06551815]
[1743767013009,0.05768556,114.15,114.13,62.06551815]
[1743767013510,8.7618,114.14,114.13,62.06551815]
[1743767014208,8.7618,114.14,114.13,0.06551815]
[1743767014511,31.79896187,114.14,114.09,583.5805414]
[1743767014709,31.79896187,114.14,114.09,545.2605414]
[1743767015213,31.79896187,114.12,114.09,545.2605414]